[Event "Late-Titled-Tuesday-Blitz-October-17-2023"]
[Site "Chess.com"]
[Date "2023.10.17"]
[Round "3"]
[White "The_Chess_Coach"]
[Black "Yushko_Olga"]
[Result "0-1"]
[WhiteElo "2354"]
[BlackElo "2163"]
[TimeControl "180+1"]
[EndTime "14:27:40 PDT"]
[Termination "Yushko_Olga won on time"]

1. d4 {[%clk 0:03:00.9]} 1... e6 {[%clk 0:02:55]} 2. Nf3 {[%clk 0:02:59.3]} 2...
f5 {[%clk 0:02:55]} 3. g3 {[%clk 0:02:56.1]} 3... Nf6 {[%clk 0:02:55.2]} 4. Bg2
{[%clk 0:02:56.2]} 4... Be7 {[%clk 0:02:55.8]} 5. O-O {[%clk 0:02:57.1]} 5...
O-O {[%clk 0:02:56.4]} 6. Nc3 {[%clk 0:02:51.1]} 6... d6 {[%clk 0:02:56.8]} 7.
Re1 {[%clk 0:02:51.1]} 7... Ne4 {[%clk 0:02:56.3]} 8. Nxe4 {[%clk 0:02:45.3]}
8... fxe4 {[%clk 0:02:57.2]} 9. Nd2 {[%clk 0:02:45.8]} 9... d5 {[%clk
0:02:57.1]} 10. c4 {[%clk 0:02:44.6]} 10... Qe8 {[%clk 0:02:56.7]} 11. Qb3
{[%clk 0:02:33.4]} 11... Qf7 {[%clk 0:02:55.5]} 12. f3 {[%clk 0:02:24.6]} 12...
e3 {[%clk 0:02:55.2]} 13. Nf1 {[%clk 0:02:22.7]} 13... Nc6 {[%clk 0:02:45]} 14.
Bxe3 {[%clk 0:02:20.8]} 14... Na5 {[%clk 0:02:45.1]} 15. Qc3 {[%clk 0:02:17.7]}
15... Nxc4 {[%clk 0:02:44.4]} 16. Bf4 {[%clk 0:02:18.2]} 16... c6 {[%clk
0:02:43.7]} 17. b3 {[%clk 0:02:13.5]} 17... Nd6 {[%clk 0:02:42]} 18. e4 {[%clk
0:02:10.4]} 18... Nb5 {[%clk 0:02:39.3]} 19. Qd3 {[%clk 0:01:50.8]} 19... Bd7
{[%clk 0:02:38.1]} 20. Ne3 {[%clk 0:01:49.3]} 20... Bb4 {[%clk 0:02:37.6]} 21.
Rf1 {[%clk 0:01:45.4]} 21... Qg6 {[%clk 0:02:37.7]} 22. Rad1 {[%clk 0:01:40.8]}
22... Rad8 {[%clk 0:02:24.2]} 23. Bh3 {[%clk 0:01:04.7]} 23... Rxf4 {[%clk
0:02:21.5]} 24. Ng2 {[%clk 0:00:51.3]} 24... Rff8 {[%clk 0:02:12.8]} 25. Kh1
{[%clk 0:00:41.1]} 25... dxe4 {[%clk 0:02:10.1]} 26. fxe4 {[%clk 0:00:42]} 26...
Rxf1+ {[%clk 0:02:10.1]} 27. Rxf1 {[%clk 0:00:40.7]} 27... Rf8 {[%clk
0:02:09.1]} 28. Nf4 {[%clk 0:00:40.4]} 28... Qf6 {[%clk 0:02:07.9]} 29. Nxe6
{[%clk 0:00:10.9]} 29... Qxf1+ {[%clk 0:01:55.1]} 30. Bxf1 {[%clk 0:00:11.8]}
30... Bxe6 {[%clk 0:01:55.5]} 31. Bg2 {[%clk 0:00:11.6]} 31... Rd8 {[%clk
0:01:51.3]} 32. d5 {[%clk 0:00:11.2]} 32... Nc3 {[%clk 0:01:44.6]} 33. Qc4
{[%clk 0:00:09.7]} 33... Ba5 {[%clk 0:01:36.4]} 34. b4 {[%clk 0:00:07.4]} 34...
cxd5 {[%clk 0:01:30.2]} 35. Qxc3 {[%clk 0:00:03.3]} 35... dxe4 {[%clk
0:01:29.4]} 36. Bxe4 {[%clk 0:00:02.1]} 36... Bb6 {[%clk 0:01:26.4]} 37. Qc2
{[%clk 0:00:02.2]} 37... h6 {[%clk 0:01:20.2]} 38. Kg2 {[%clk 0:00:02.3]} 38...
Be3 {[%clk 0:01:18.1]} 39. Qc4 {[%clk 0:00:01.7]} 39... Bxc4 {[%clk 0:01:17.6]}
0-1

[Event "Late-Titled-Tuesday-Blitz-October-17-2023"]
[Site "Chess.com"]
[Date "2023.10.17"]
[Round "3"]
[White "Carlitus2004"]
[Black "dedpihto_v_kozhanom_palto"]
[Result "1-0"]
[WhiteElo "2486"]
[BlackElo "2631"]
[TimeControl "180+1"]
[EndTime "14:27:45 PDT"]
[Termination "Carlitus2004 won by resignation"]

1. e4 {[%clk 0:03:00.9]} 1... g6 {[%clk 0:02:55.4]} 2. d4 {[%clk 0:02:53.6]}
2... Bg7 {[%clk 0:02:55.9]} 3. h4 {[%clk 0:02:52.4]} 3... h5 {[%clk 0:02:54.7]}
4. Bg5 {[%clk 0:02:50.8]} 4... d6 {[%clk 0:02:55]} 5. c3 {[%clk 0:02:45.9]} 5...
Nc6 {[%clk 0:02:55.3]} 6. Nd2 {[%clk 0:02:45.8]} 6... Nf6 {[%clk 0:02:55.4]} 7.
Bd3 {[%clk 0:02:45]} 7... e5 {[%clk 0:02:53.1]} 8. d5 {[%clk 0:02:43]} 8... Ne7
{[%clk 0:02:53.3]} 9. Ne2 {[%clk 0:02:41.7]} 9... c6 {[%clk 0:02:51.8]} 10. c4
{[%clk 0:02:40.8]} 10... a6 {[%clk 0:02:39.9]} 11. f3 {[%clk 0:02:32.7]} 11...
Bd7 {[%clk 0:02:36.6]} 12. Ng3 {[%clk 0:02:27]} 12... b5 {[%clk 0:02:03.2]} 13.
b3 {[%clk 0:02:22]} 13... O-O {[%clk 0:01:54.6]} 14. Qe2 {[%clk 0:02:21.6]}
14... bxc4 {[%clk 0:01:50.3]} 15. bxc4 {[%clk 0:02:21.3]} 15... a5 {[%clk
0:01:44.7]} 16. O-O {[%clk 0:02:17.5]} 16... Nh7 {[%clk 0:01:39.9]} 17. Be3
{[%clk 0:02:15]} 17... f5 {[%clk 0:01:38]} 18. exf5 {[%clk 0:02:12.6]} 18...
Nxf5 {[%clk 0:01:38.6]} 19. Bxf5 {[%clk 0:02:08.4]} 19... Bxf5 {[%clk
0:01:38.8]} 20. Bf2 {[%clk 0:01:39.8]} 20... cxd5 {[%clk 0:01:37.8]} 21. cxd5
{[%clk 0:01:39.6]} 21... Nf6 {[%clk 0:01:33.8]} 22. Nde4 {[%clk 0:01:30.7]}
22... Bxe4 {[%clk 0:01:28.3]} 23. Nxe4 {[%clk 0:01:28.4]} 23... Nxe4 {[%clk
0:01:22.4]} 24. fxe4 {[%clk 0:01:29.3]} 24... Qd7 {[%clk 0:01:17.8]} 25. Rac1
{[%clk 0:01:20.6]} 25... Rac8 {[%clk 0:01:16.8]} 26. Be3 {[%clk 0:01:18.5]}
26... Rxc1 {[%clk 0:01:15.6]} 27. Rxc1 {[%clk 0:01:19.4]} 27... Qa4 {[%clk
0:01:13.1]} 28. Bg5 {[%clk 0:01:17.8]} 28... Rf7 {[%clk 0:01:03.5]} 29. Qc4
{[%clk 0:01:11]} 29... Qa3 {[%clk 0:01:00.4]} 30. Qc8+ {[%clk 0:01:09.7]} 30...
Kh7 {[%clk 0:01:00.3]} 31. Qe6 {[%clk 0:00:58]} 31... Rb7 {[%clk 0:00:39.2]} 32.
Rc8 {[%clk 0:00:41.4]} 32... Qc1+ {[%clk 0:00:10.8]} 33. Bxc1 {[%clk 0:00:40.5]}
1-0

[Event "Late-Titled-Tuesday-Blitz-October-17-2023"]
[Site "Chess.com"]
[Date "2023.10.17"]
[Round "3"]
[White "amanmuhammethommadov"]
[Black "Mbneu"]
[Result "1-0"]
[WhiteElo "2528"]
[BlackElo "2243"]
[TimeControl "180+1"]
[EndTime "14:27:47 PDT"]
[Termination "amanmuhammethommadov won by checkmate"]

1. e4 {[%clk 0:03:00.9]} 1... e5 {[%clk 0:02:55.3]} 2. Nf3 {[%clk 0:03:00.4]}
2... Nc6 {[%clk 0:02:53.7]} 3. Bb5 {[%clk 0:03:00.3]} 3... Bc5 {[%clk
0:02:52.9]} 4. O-O {[%clk 0:02:59.7]} 4... d6 {[%clk 0:02:52.1]} 5. h3 {[%clk
0:02:59.3]} 5... a6 {[%clk 0:02:51.6]} 6. Ba4 {[%clk 0:02:58.6]} 6... Ne7 {[%clk
0:02:50.3]} 7. c3 {[%clk 0:02:58.8]} 7... Ba7 {[%clk 0:02:48.7]} 8. d4 {[%clk
0:02:58.6]} 8... exd4 {[%clk 0:02:48.9]} 9. cxd4 {[%clk 0:02:58.4]} 9... O-O
{[%clk 0:02:49.4]} 10. Nc3 {[%clk 0:02:57.9]} 10... d5 {[%clk 0:02:48]} 11. e5
{[%clk 0:02:51.3]} 11... Bf5 {[%clk 0:02:46.7]} 12. Bg5 {[%clk 0:02:47.7]} 12...
Be4 {[%clk 0:02:29.7]} 13. Bxc6 {[%clk 0:02:32.4]} 13... bxc6 {[%clk 0:02:28.8]}
14. Nxe4 {[%clk 0:02:09.5]} 14... dxe4 {[%clk 0:02:27.9]} 15. Nd2 {[%clk
0:02:10]} 15... h6 {[%clk 0:02:19.3]} 16. Bh4 {[%clk 0:01:58.9]} 16... Qd7
{[%clk 0:02:14.3]} 17. Nxe4 {[%clk 0:01:56.5]} 17... Ng6 {[%clk 0:02:13.5]} 18.
Bg3 {[%clk 0:01:53.8]} 18... Qxd4 {[%clk 0:02:10.8]} 19. Rc1 {[%clk 0:01:09.1]}
19... Qxb2 {[%clk 0:02:03.1]} 20. Rxc6 {[%clk 0:01:08.2]} 20... Rad8 {[%clk
0:01:51.8]} 21. Qh5 {[%clk 0:01:02.1]} 21... Rd5 {[%clk 0:01:12.4]} 22. Rxc7
{[%clk 0:00:45]} 22... Bb8 {[%clk 0:01:08.6]} 23. Rc6 {[%clk 0:00:24.5]} 23...
Bxe5 {[%clk 0:00:58.3]} 24. Rxa6 {[%clk 0:00:23.5]} 24... Rfd8 {[%clk
0:00:52.2]} 25. Bxe5 {[%clk 0:00:19.8]} 25... Rxe5 {[%clk 0:00:49.2]} 26. Qf3
{[%clk 0:00:20.4]} 26... Nh4 {[%clk 0:00:41.1]} 27. Qg4 {[%clk 0:00:20.5]} 27...
Ng6 {[%clk 0:00:34.6]} 28. Ra7 {[%clk 0:00:20]} 28... Rd4 {[%clk 0:00:31.3]} 29.
Qc8+ {[%clk 0:00:19.7]} 29... Kh7 {[%clk 0:00:30.8]} 30. Nf6+ {[%clk 0:00:19.6]}
30... gxf6 {[%clk 0:00:30.1]} 31. Rxf7# {[%clk 0:00:20.2]} 1-0

[Event "Late-Titled-Tuesday-Blitz-October-17-2023"]
[Site "Chess.com"]
[Date "2023.10.17"]
[Round "3"]
[White "wadsy27"]
[Black "DanielDardha2005"]
[Result "0-1"]
[WhiteElo "2658"]
[BlackElo "2898"]
[TimeControl "180+1"]
[EndTime "14:27:54 PDT"]
[Termination "DanielDardha2005 won by resignation"]

1. Nf3 {[%clk 0:03:00.9]} 1... g6 {[%clk 0:02:58.4]} 2. g3 {[%clk 0:02:58.5]}
2... Bg7 {[%clk 0:02:58]} 3. Bg2 {[%clk 0:02:57.2]} 3... d6 {[%clk 0:02:57.9]}
4. O-O {[%clk 0:02:53.7]} 4... Nc6 {[%clk 0:02:58.2]} 5. c4 {[%clk 0:02:52.2]}
5... Bd7 {[%clk 0:02:55.1]} 6. d4 {[%clk 0:02:48.4]} 6... Qc8 {[%clk 0:02:54.9]}
7. d5 {[%clk 0:02:48.7]} 7... Ne5 {[%clk 0:02:53.9]} 8. Nxe5 {[%clk 0:02:47]}
8... Bxe5 {[%clk 0:02:54.8]} 9. Nc3 {[%clk 0:02:27.8]} 9... Bh3 {[%clk
0:02:53.4]} 10. Qa4+ {[%clk 0:02:21]} 10... Kf8 {[%clk 0:02:51.2]} 11. Be3
{[%clk 0:01:50.7]} 11... h5 {[%clk 0:02:49.8]} 12. f4 {[%clk 0:01:37.6]} 12...
Bxc3 {[%clk 0:02:47.9]} 13. bxc3 {[%clk 0:01:36.7]} 13... h4 {[%clk 0:02:48.8]}
14. Rf3 {[%clk 0:01:18]} 14... Bxg2 {[%clk 0:02:35.3]} 15. Kxg2 {[%clk
0:01:17.2]} 15... hxg3 {[%clk 0:02:35.2]} 16. Rxg3 {[%clk 0:01:16.1]} 16... Nh6
{[%clk 0:02:35.4]} 17. Bd4 {[%clk 0:01:14.1]} 17... Rh7 {[%clk 0:02:33]} 18. e4
{[%clk 0:01:10]} 18... c5 {[%clk 0:02:17.2]} 19. Bg1 {[%clk 0:00:59.5]} 19...
Ng4 {[%clk 0:02:13.9]} 20. Rf1 {[%clk 0:00:49.2]} 20... Nf6 {[%clk 0:02:04.4]}
21. e5 {[%clk 0:00:37.9]} 21... Ne4 {[%clk 0:01:55.7]} 22. f5 {[%clk 0:00:25.1]}
22... Nxg3 {[%clk 0:01:52.3]} 23. hxg3 {[%clk 0:00:24.7]} 23... dxe5 {[%clk
0:01:38.1]} 24. Qc2 {[%clk 0:00:15.2]} 24... Kg7 {[%clk 0:01:30.4]} 25. Qe4
{[%clk 0:00:13.8]} 25... f6 {[%clk 0:01:29.4]} 26. fxg6 {[%clk 0:00:05.7]} 26...
Qh3+ {[%clk 0:01:27.4]} 27. Kf2 {[%clk 0:00:05.9]} 27... Rh6 {[%clk 0:01:22.7]}
28. d6 {[%clk 0:00:05.4]} 28... Qd7 {[%clk 0:01:13.3]} 29. Rd1 {[%clk
0:00:04.3]} 29... exd6 {[%clk 0:01:11.4]} 30. Ke2 {[%clk 0:00:03.8]} 30... Rxg6
{[%clk 0:01:09]} 31. Bxc5 {[%clk 0:00:03.4]} 31... Qg4+ {[%clk 0:01:06]} 32.
Qxg4 {[%clk 0:00:03.6]} 32... Rxg4 {[%clk 0:01:06.9]} 33. Rxd6 {[%clk
0:00:03.9]} 33... Rxc4 {[%clk 0:01:03.8]} 34. Rd7+ {[%clk 0:00:02.9]} 34... Kg6
{[%clk 0:01:03.6]} 35. Be3 {[%clk 0:00:03.1]} 35... Rxc3 {[%clk 0:01:02.2]} 36.
Rxb7 {[%clk 0:00:03.2]} 36... Rc2+ {[%clk 0:01:02.4]} 37. Kf3 {[%clk 0:00:03.5]}
37... Rxa2 {[%clk 0:01:03.3]} 38. g4 {[%clk 0:00:03.8]} 38... a5 {[%clk
0:01:02]} 39. Rb6 {[%clk 0:00:03.6]} 39... Ra3 {[%clk 0:01:00.8]} 40. g5 {[%clk
0:00:03.2]} 40... Rxe3+ {[%clk 0:01:01]} 41. Kxe3 {[%clk 0:00:03.7]} 41... Kxg5
{[%clk 0:01:01.1]} 0-1

[Event "Late-Titled-Tuesday-Blitz-October-17-2023"]
[Site "Chess.com"]
[Date "2023.10.17"]
[Round "3"]
[White "shanemelaughcm"]
[Black "jup1978"]
[Result "1-0"]
[WhiteElo "2356"]
[BlackElo "2535"]
[TimeControl "180+1"]
[EndTime "14:27:55 PDT"]
[Termination "shanemelaughcm won on time"]

1. e4 {[%clk 0:02:52.5]} 1... e5 {[%clk 0:02:59.3]} 2. Nf3 {[%clk 0:02:52.5]}
2... Nf6 {[%clk 0:02:59.7]} 3. d3 {[%clk 0:02:51.3]} 3... Nc6 {[%clk 0:02:59.2]}
4. Nbd2 {[%clk 0:02:50.5]} 4... Bc5 {[%clk 0:02:58.3]} 5. Be2 {[%clk 0:02:49.8]}
5... O-O {[%clk 0:02:57.9]} 6. c3 {[%clk 0:02:48.6]} 6... a5 {[%clk 0:02:57.2]}
7. h3 {[%clk 0:02:48.3]} 7... Re8 {[%clk 0:02:56.8]} 8. Nf1 {[%clk 0:02:43.7]}
8... d5 {[%clk 0:02:55.1]} 9. Qc2 {[%clk 0:02:44.6]} 9... b6 {[%clk 0:02:52.4]}
10. Ng3 {[%clk 0:02:38.1]} 10... Ba6 {[%clk 0:02:51.1]} 11. O-O {[%clk 0:02:35]}
11... d4 {[%clk 0:02:34.1]} 12. Bg5 {[%clk 0:02:29.4]} 12... h6 {[%clk 0:02:33]}
13. Bd2 {[%clk 0:02:17.5]} 13... Bc8 {[%clk 0:02:20]} 14. Nh4 {[%clk 0:02:15.6]}
14... Nxe4 {[%clk 0:02:04.1]} 15. Nxe4 {[%clk 0:02:16.1]} 15... Qxh4 {[%clk
0:02:04.2]} 16. Nxc5 {[%clk 0:02:16.8]} 16... bxc5 {[%clk 0:02:04.9]} 17. cxd4
{[%clk 0:02:16.6]} 17... Nxd4 {[%clk 0:02:05.8]} 18. Qd1 {[%clk 0:02:15.5]}
18... Ba6 {[%clk 0:02:00.5]} 19. Be3 {[%clk 0:02:14.9]} 19... Nxe2+ {[%clk
0:01:50.2]} 20. Qxe2 {[%clk 0:02:15.3]} 20... e4 {[%clk 0:01:50.6]} 21. Rfc1
{[%clk 0:02:11.9]} 21... exd3 {[%clk 0:01:31.8]} 22. Qf3 {[%clk 0:02:12.2]}
22... c4 {[%clk 0:01:28.8]} 23. Rc3 {[%clk 0:01:53.8]} 23... Rab8 {[%clk
0:01:16.7]} 24. a4 {[%clk 0:01:50.8]} 24... Rxb2 {[%clk 0:01:07.8]} 25. Qc6
{[%clk 0:01:51.1]} 25... Bb7 {[%clk 0:01:01.7]} 26. Qxe8+ {[%clk 0:01:50.9]}
26... Kh7 {[%clk 0:00:59.7]} 27. Qxf7 {[%clk 0:01:44.6]} 27... Qe4 {[%clk
0:00:56.4]} 28. Qf3 {[%clk 0:01:39.2]} 28... Qe5 {[%clk 0:00:56.1]} 29. Qf4
{[%clk 0:01:19.6]} 29... Qxc3 {[%clk 0:00:52.3]} 30. Bd4 {[%clk 0:01:11.3]}
30... Qc2 {[%clk 0:00:28.2]} 31. Qf5+ {[%clk 0:01:01.9]} 31... Kg8 {[%clk
0:00:25.7]} 32. Qe6+ {[%clk 0:01:00.9]} 32... Kh7 {[%clk 0:00:20.3]} 33. Qf7
{[%clk 0:00:54.7]} 1-0

[Event "Late-Titled-Tuesday-Blitz-October-17-2023"]
[Site "Chess.com"]
[Date "2023.10.17"]
[Round "3"]
[White "nicholas_ilic"]
[Black "Semetey"]
[Result "0-1"]
[WhiteElo "2332"]
[BlackElo "2551"]
[TimeControl "180+1"]
[EndTime "14:27:57 PDT"]
[Termination "Semetey won by checkmate"]

1. e4 {[%clk 0:03:00.9]} 1... a6 {[%clk 0:03:00.9]} 2. Nf3 {[%clk 0:02:58.6]}
2... c6 {[%clk 0:02:59.3]} 3. d4 {[%clk 0:02:58.6]} 3... d5 {[%clk 0:02:59.4]}
4. e5 {[%clk 0:02:58.8]} 4... Bf5 {[%clk 0:02:59.1]} 5. Bd3 {[%clk 0:02:57.6]}
5... Bxd3 {[%clk 0:02:58.4]} 6. Qxd3 {[%clk 0:02:58]} 6... e6 {[%clk 0:02:58.5]}
7. O-O {[%clk 0:02:58.2]} 7... Ne7 {[%clk 0:02:57]} 8. Bg5 {[%clk 0:02:54.8]}
8... h6 {[%clk 0:02:56.4]} 9. Bh4 {[%clk 0:02:54.6]} 9... Qb6 {[%clk 0:02:55.8]}
10. Nbd2 {[%clk 0:02:51.3]} 10... Nf5 {[%clk 0:02:55.2]} 11. c3 {[%clk
0:02:49.8]} 11... Nxh4 {[%clk 0:02:54.9]} 12. Nxh4 {[%clk 0:02:49.8]} 12... Be7
{[%clk 0:02:55.5]} 13. Nhf3 {[%clk 0:02:41.7]} 13... O-O {[%clk 0:02:55.4]} 14.
Ne1 {[%clk 0:02:37.5]} 14... c5 {[%clk 0:02:54.4]} 15. f4 {[%clk 0:02:36]} 15...
Nc6 {[%clk 0:02:54.3]} 16. Nef3 {[%clk 0:02:34.4]} 16... cxd4 {[%clk 0:02:50]}
17. cxd4 {[%clk 0:02:34.3]} 17... Rac8 {[%clk 0:02:39.6]} 18. a3 {[%clk
0:02:32.1]} 18... Na5 {[%clk 0:02:31.2]} 19. f5 {[%clk 0:02:30.8]} 19... exf5
{[%clk 0:02:29.3]} 20. Qxf5 {[%clk 0:02:26.8]} 20... Qxb2 {[%clk 0:02:20.8]} 21.
e6 {[%clk 0:02:17.8]} 21... Rcd8 {[%clk 0:01:54.1]} 22. Ne5 {[%clk 0:02:07.6]}
22... Qxd4+ {[%clk 0:01:44.4]} 23. Kh1 {[%clk 0:02:07]} 23... Bf6 {[%clk
0:01:27.9]} 24. exf7+ {[%clk 0:02:05.3]} 24... Rxf7 {[%clk 0:01:27.2]} 25. Nxf7
{[%clk 0:02:02.8]} 25... Kxf7 {[%clk 0:01:28.1]} 26. Nf3 {[%clk 0:02:00.5]}
26... Qe4 {[%clk 0:01:23.7]} 27. Qh3 {[%clk 0:02:00.1]} 27... Kg8 {[%clk
0:01:22.7]} 28. Rae1 {[%clk 0:01:59.5]} 28... Qc2 {[%clk 0:01:13.1]} 29. Qe6+
{[%clk 0:01:58.9]} 29... Kh8 {[%clk 0:01:12.4]} 30. Rc1 {[%clk 0:01:54.4]} 30...
Qe4 {[%clk 0:01:10]} 31. Qf7 {[%clk 0:01:52]} 31... d4 {[%clk 0:01:03.3]} 32.
Rc7 {[%clk 0:01:50]} 32... b5 {[%clk 0:00:58.4]} 33. Ra7 {[%clk 0:01:33.8]}
33... Nc4 {[%clk 0:00:49.9]} 34. Rxa6 {[%clk 0:01:31]} 34... Ne3 {[%clk
0:00:49.8]} 35. Re1 {[%clk 0:01:23.7]} 35... Qg4 {[%clk 0:00:49.6]} 36. Rg1
{[%clk 0:01:16.5]} 36... Qf4 {[%clk 0:00:36.4]} 37. Qg6 {[%clk 0:00:52.5]} 37...
d3 {[%clk 0:00:34.5]} 38. Nd2 {[%clk 0:00:51.5]} 38... Ng4 {[%clk 0:00:33.8]}
39. Nf3 {[%clk 0:00:35.9]} 39... Nf2# {[%clk 0:00:33.2]} 0-1

[Event "Late-Titled-Tuesday-Blitz-October-17-2023"]
[Site "Chess.com"]
[Date "2023.10.17"]
[Round "3"]
[White "Heinza9"]
[Black "DryCounty"]
[Result "0-1"]
[WhiteElo "2321"]
[BlackElo "2645"]
[TimeControl "180+1"]
[EndTime "14:28:05 PDT"]
[Termination "DryCounty won by resignation"]

1. e4 {[%clk 0:03:00.9]} 1... c5 {[%clk 0:02:58.3]} 2. Nf3 {[%clk 0:03:01]} 2...
d6 {[%clk 0:02:57.4]} 3. Bb5+ {[%clk 0:03:00.8]} 3... Bd7 {[%clk 0:02:56.8]} 4.
Bxd7+ {[%clk 0:03:00.9]} 4... Nxd7 {[%clk 0:02:56.3]} 5. O-O {[%clk 0:03:00.9]}
5... Ngf6 {[%clk 0:02:55.9]} 6. Re1 {[%clk 0:03:01.3]} 6... e6 {[%clk
0:02:55.7]} 7. c3 {[%clk 0:03:01.6]} 7... Be7 {[%clk 0:02:55.6]} 8. d4 {[%clk
0:03:01.8]} 8... O-O {[%clk 0:02:55.1]} 9. e5 {[%clk 0:03:00]} 9... Ne8 {[%clk
0:02:53.5]} 10. dxc5 {[%clk 0:02:56.6]} 10... Nxc5 {[%clk 0:02:52.1]} 11. b4
{[%clk 0:02:45]} 11... Nd7 {[%clk 0:02:46.1]} 12. exd6 {[%clk 0:02:39.1]} 12...
Nxd6 {[%clk 0:02:45.6]} 13. Na3 {[%clk 0:02:31.9]} 13... Nf6 {[%clk 0:02:42.6]}
14. c4 {[%clk 0:02:26.9]} 14... Nf5 {[%clk 0:02:39.9]} 15. Qb3 {[%clk
0:02:16.1]} 15... a5 {[%clk 0:02:38.4]} 16. b5 {[%clk 0:02:11.1]} 16... a4
{[%clk 0:02:33.1]} 17. Qc3 {[%clk 0:02:03.5]} 17... Qa5 {[%clk 0:02:22.1]} 18.
Qxa5 {[%clk 0:01:49.6]} 18... Rxa5 {[%clk 0:02:23]} 19. Bb2 {[%clk 0:01:40.8]}
19... Rc8 {[%clk 0:02:20.2]} 20. g4 {[%clk 0:01:34.9]} 20... Nxg4 {[%clk
0:02:15.8]} 21. Rad1 {[%clk 0:01:30.8]} 21... Raa8 {[%clk 0:02:13.8]} 22. Rd7
{[%clk 0:01:28.8]} 22... b6 {[%clk 0:02:04.4]} 23. Red1 {[%clk 0:01:20.8]} 23...
Bc5 {[%clk 0:02:03.2]} 24. R1d2 {[%clk 0:01:13.1]} 24... Nf6 {[%clk 0:01:50.8]}
25. R7d3 {[%clk 0:00:55.3]} 25... h6 {[%clk 0:01:44]} 26. Nc2 {[%clk 0:00:48.7]}
26... Ne4 {[%clk 0:01:39.6]} 27. Re2 {[%clk 0:00:48.5]} 27... Ned6 {[%clk
0:01:34.6]} 28. Ne5 {[%clk 0:00:45.6]} 28... f6 {[%clk 0:01:16.4]} 29. Nc6
{[%clk 0:00:45.5]} 29... Re8 {[%clk 0:01:12.9]} 30. Ba3 {[%clk 0:00:35.3]} 30...
Nxc4 {[%clk 0:01:05.5]} 31. Bxc5 {[%clk 0:00:33.8]} 31... bxc5 {[%clk
0:01:05.6]} 32. Rc3 {[%clk 0:00:33.3]} 32... Nfd6 {[%clk 0:00:59.1]} 33. Ne3
{[%clk 0:00:27.2]} 33... Nxe3 {[%clk 0:00:58.5]} 34. Rcxe3 {[%clk 0:00:21]}
34... Nxb5 {[%clk 0:00:56.5]} 35. Rxe6 {[%clk 0:00:20.5]} 35... Rxe6 {[%clk
0:00:56.6]} 36. Rxe6 {[%clk 0:00:20.6]} 36... Nc3 {[%clk 0:00:39.5]} 37. a3
{[%clk 0:00:18.2]} 37... Nb5 {[%clk 0:00:39.1]} 38. Re3 {[%clk 0:00:13.7]} 38...
Nd4 {[%clk 0:00:38.9]} 39. Kf1 {[%clk 0:00:09.7]} 39... Nxc6 {[%clk 0:00:38.4]}
0-1

[Event "Late-Titled-Tuesday-Blitz-October-17-2023"]
[Site "Chess.com"]
[Date "2023.10.17"]
[Round "3"]
[White "NormWeinstein"]
[Black "luizzy"]
[Result "1-0"]
[WhiteElo "2404"]
[BlackElo "2561"]
[TimeControl "180+1"]
[EndTime "14:28:05 PDT"]
[Termination "NormWeinstein won on time"]

1. e4 {[%clk 0:02:59.1]} 1... c5 {[%clk 0:02:59.4]} 2. Nf3 {[%clk 0:02:59.1]}
2... g6 {[%clk 0:02:57.6]} 3. d4 {[%clk 0:02:58.8]} 3... cxd4 {[%clk 0:02:57.4]}
4. Qxd4 {[%clk 0:02:58.9]} 4... Nf6 {[%clk 0:02:57.2]} 5. e5 {[%clk 0:02:59.2]}
5... Nc6 {[%clk 0:02:57.2]} 6. Qa4 {[%clk 0:02:59.2]} 6... Nd5 {[%clk
0:02:57.2]} 7. Qh4 {[%clk 0:02:58.8]} 7... Bg7 {[%clk 0:02:49.7]} 8. Bh6 {[%clk
0:02:58.2]} 8... Bxh6 {[%clk 0:02:41.5]} 9. Qxh6 {[%clk 0:02:57.7]} 9... d6
{[%clk 0:02:33.8]} 10. Qg7 {[%clk 0:02:50.3]} 10... Rf8 {[%clk 0:02:33.5]} 11.
Ng5 {[%clk 0:02:24.4]} 11... Nd4 {[%clk 0:02:02.2]} 12. Nxh7 {[%clk 0:02:12.5]}
12... Ne6 {[%clk 0:02:02.3]} 13. Qh6 {[%clk 0:02:04.8]} 13... Rh8 {[%clk
0:02:02.1]} 14. Nf6+ {[%clk 0:01:59.1]} 14... exf6 {[%clk 0:01:55.1]} 15. Qxh8+
{[%clk 0:01:58.2]} 15... Nf8 {[%clk 0:01:55.9]} 16. Bc4 {[%clk 0:01:26.9]} 16...
dxe5 {[%clk 0:01:38]} 17. O-O {[%clk 0:01:26]} 17... Nb6 {[%clk 0:01:34.3]} 18.
Bb5+ {[%clk 0:01:18.1]} 18... Bd7 {[%clk 0:01:34.4]} 19. Nc3 {[%clk 0:01:16.6]}
19... Bxb5 {[%clk 0:01:22.3]} 20. Nxb5 {[%clk 0:01:13.4]} 20... Qd7 {[%clk
0:01:11]} 21. a4 {[%clk 0:01:12.5]} 21... Qc6 {[%clk 0:00:47.1]} 22. Rfd1 {[%clk
0:01:05.8]} 22... a6 {[%clk 0:00:28]} 23. Nd6+ {[%clk 0:00:53.4]} 23... Ke7
{[%clk 0:00:28.2]} 24. Qg7 {[%clk 0:00:51.4]} 24... Nfd7 {[%clk 0:00:09.5]} 25.
Nxf7 {[%clk 0:00:39.8]} 25... Ke8 {[%clk 0:00:01.6]} 26. Qxg6 {[%clk 0:00:34.3]}
26... Kf8 {[%clk 0:00:02.2]} 27. Nh6 {[%clk 0:00:33]} 27... Ke7 {[%clk
0:00:01.8]} 28. Nf7 {[%clk 0:00:28.6]} 28... Kf8 {[%clk 0:00:01.1]} 29. Rd6
{[%clk 0:00:27]} 1-0